Cogmind - Beta 13 @@@ ROGUE MODE // 2024.04.06 @ 23:41:16 Player: f_ Result: Destroyed by G-34 Mercenary with Small Laser Performance ------------- Evolutions (1) 500 Regions Visited (5) 1000 Robots Destroyed (29) 145 Value Destroyed (489) 489 Prototype IDs (5) 100 Alien Tech Used (0) 0 Bonus (407) 407 TOTAL SCORE: 2641 Bonus ------- Follower Combat Kills 207 Entered Garrisons 200 Cogmind --------- Core Integrity 0/400 Matter 285/300 Energy 100/100 System Corruption 1% Temperature Cool (6) Movement Core (100) Ox1 Location -9/Garrison Parts ------- > --- POWER (1) -------- (None) > --- PROPULSION (3) --- (None) > --- UTILITY (3) ------ Improved Signal Interpreter Drone Bay (2/2) > --- WEAPON (2) ------- (None) > --- INVENTORY (5) ---- Cold Fusion Reactor Drone Bay (2/2) Drone Bay (2/2) Tesla Bomb Trap Peak State ------------ > --- POWER ------------ Light Ion Engine > --- PROPULSION ------- Flight Unit Flight Unit Flight Unit > --- UTILITY ---------- Sensor Array Improved Signal Interpreter Drone Bay > --- WEAPON ----------- Rocket Launcher Datajack > --- INVENTORY -------- Drone Bay Drone Bay Drone Bay Drone Bay Heavy Flail [Rating: 18] Favorites ----------- Power Light Ion Engine Engine Light Ion Engine Reactor Cold Fusion Reactor Propulsion Flight Unit Wheel Compact Wheel Flight Unit Flight Unit Utility Improved Signal Interpreter Device Sensor Array Storage Large Storage Unit Processor Improved Signal Interpreter Hackware System Shield Weapon Datajack Energy Gun EM Pulse Gun Ballistic Gun Assault Rifle Launcher Rocket Launcher Impact Weapon Heavy Flail Special Melee Weapon Datajack Build | -11 -10 -10 -9 -9 -9 ------- Run | Yrd Mat Min Mat Sto Gar Slots Evolved 2 | . . . 2 . . Power . | . . . . . . Propulsion 1 | . . . 1 . . Utility 1 | . . . 1 . . Weapon . | . . . . . . Parts Attached 38 | 6 9 4 5 12 2 Power 6 | 1 1 . 2 2 . Engine 5 | 1 1 . 2 1 . Core . | . . . . . . Reactor 1 | . . . . 1 . Propulsion 9 | 2 2 1 1 3 . Treads . | . . . . . . Leg . | . . . . . . Wheel 2 | 2 . . . . . Hover . | . . . . . . Flight 7 | . 2 1 1 3 . Utility 12 | 1 3 1 1 4 2 Device 7 | . 1 . . 4 2 Storage 2 | 1 1 . . . . Processor 2 | . 1 1 . . . Hackware 1 | . . . 1 . . Protection . | . . . . . . Artifact . | . . . . . . Weapon 11 | 2 3 2 1 3 . Energy Gun 3 | 1 1 1 . . . Energy Cannon . | . . . . . . Ballistic Gun 3 | 1 1 . . 1 . Ballistic Cannon . | . . . . . . Launcher 1 | . . 1 . . . Special Weapon . | . . . . . . Impact Weapon 1 | . . . . 1 . Slashing Weapon . | . . . . . . Piercing Weapon . | . . . . . . Special Melee Weapon 3 | . 1 . 1 1 . Unidentified Prototypes 3 | . . . 1 2 . Parts Lost 19 | . 5 . 1 12 1 Power 3 | . 1 . . 2 . Propulsion 7 | . 1 . . 6 . Utility 2 | . . . 1 1 . Weapon 7 | . 3 . . 3 1 Highest Loss Streak 7 | . 3 . 1 7 1 To Critical Strikes . | . . . . . . Average Slot Usage (%) 74 | . 79 79 95 68 31 Engine 9 | . 13 14 11 5 . Wheel 10 | . 26 . . . . Flight 15 | . 1 28 32 25 . Device 5 | . . 14 11 7 11 Storage 5 | . 13 . . . . Processor 7 | . . 14 11 11 11 Energy Gun 4 | . 10 1 . . . Ballistic Gun 4 | . 8 . . 3 . Launcher 3 | . . 7 11 4 . Impact Weapon 3 | . . . . 7 9 Special Melee Weapon 4 | . 4 . 10 3 . Naked Turns . | . . . . . . Heaviest Build 29 | 14 29 8 9 11 9 Greatest Support 32 | 32 32 8 12 12 3 Greatest Overweight (x) 5 | . 5 . . 1 2 Average Overweight (x) . | . . . . . 1 Largest Inventory Capacity 15 | 8 15 5 5 5 5 Average Capacity 8 | 7 13 5 5 5 5 Most Carried 7 | 2 7 5 4 5 5 Average Carried 4 | 1 4 3 2 4 3 Final Capacity 8 | 8 5 5 5 5 5 Final Carried 5 | 2 2 5 3 5 4 Class Distribution -------------------- 87% | Mutant 7% | Scavenger-Mutant 3% | Sprinter Dominant Class ---------------- Mutant | -10/Materials Scavenger-Mutant | -10/Mines Mutant | -9/Materials Mutant | -9/Storage Mutant | -9/Garrison Resources | -11 -10 -10 -9 -9 -9 ----------- Run | Yrd Mat Min Mat Sto Gar Matter Collected 669 | 148 231 25 . 265 . Remotely . | . . . . . . Salvage Created 736 | . 300 . 3 433 . Parts 43 | . 20 . 1 22 . Haulers Intercepted 3 | . 1 . . 2 . Recyclers Shooed . | . . . . . . Parts Field Recycled . | . . . . . . Retrieved Matter . | . . . . . . Parts Self-Destructed . | . . . . . . Prevented . | . . . . . . Kills | -11 -10 -10 -9 -9 -9 ------- Run | Yrd Mat Min Mat Sto Gar Combat Hostiles Destroyed 20 | . 6 . 3 11 . Melee 3 | . . . . 3 . Guns 8 | . 6 . . 2 . AOE 6 | . . . 3 3 . Classes Destroyed 8 | . 5 . . 3 . Worker 1 | . . . . 1 . Hauler 3 | . 1 . . 2 . Recycler 1 | . . . . 1 . Operator 1 | . 1 . . . . Watcher 3 | . 2 . . 1 . Swarmer 13 | . 3 . 3 7 . Grunt 6 | . 3 . . 3 . Sentry 1 | . . . . 1 . Best Kill Streak 10 | . 3 . 3 10 . Combat Bots Only 7 | . 3 . 3 7 . Max Kills in Single Turn 4 | . 1 . 1 4 . Gunslinging . | . . . . . . Exploded 3 | . . . 1 3 . Melee 1 | . . . . 1 . Uniques/NPCs Destroyed . | . . . . . . Combat | -11 -10 -10 -9 -9 -9 -------- Run | Yrd Mat Min Mat Sto Gar Hostile Shots Fired 223 | . 57 . 27 105 34 Missed 78 | . 13 . 17 37 11 Damage Taken 1725 | . 593 . 128 791 213 Core 607 | . 196 . 57 296 58 Absorbed by Shields 55 | . . . . 55 . Core Remaining (%) 60 | 100 . 21 . . . Volleys Fired 70 | . 62 . 3 5 . Largest 2 | . 2 . 1 1 . Hottest 70 | . 70 . 33 33 . Shots Fired 97 | . 88 1 3 5 . Gun 92 | . 88 . . 4 . Cannon . | . . . . . . Launcher 5 | . . 1 3 1 . Special . | . . . . . . Kinetic 47 | . 43 . . 4 . Thermal 18 | . 18 . . . . Explosive 5 | . . 1 3 1 . Electromagnetic 27 | . 27 . . . . Robot Hit Streak 13 | . 13 . . 3 . Robot Miss Streak 4 | . 4 . 2 1 . Penetration Max . | . . . . . . Secondary Targets . | . . . . . . Shots Hit Robots 78 | . 55 . . 23 . Core Hits 30 | . 17 . 3 10 . Critical Kills . | . . . . . . Critical Parts Destroyed 3 | . . . . 3 . Critical Strikes 5 | . 2 . . 3 . Burn 1 | . 1 . . . . Corrupt 1 | . 1 . . . . Smash 3 | . . . . 3 . Melee Attacks 36 | . . . . 36 . Impact 29 | . . . . 29 . Slashing . | . . . . . . Piercing . | . . . . . . Sneak Attacks 6 | . . . . 6 . Combat Hostiles . | . . . . . . Follow-up Attacks . | . . . . . . Damage Inflicted 2524 | . 774 . 301 1449 . Guns 776 | . 731 . . 45 . Cannons . | . . . . . . Explosions 579 | . 43 . 301 235 . Melee 1169 | . . . . 1169 . Ramming . | . . . . . . Kinetic 426 | . 381 . . 45 . Thermal 220 | . 220 . . . . Explosive 536 | . . . 301 235 . Electromagnetic 173 | . 173 . . . . Impact 1169 | . . . . 1169 . Slashing . | . . . . . . Piercing . | . . . . . . Highest Corruption 2 | . 2 2 . 1 1 Average Corruption 1 | . 1 2 . 1 1 Corruption Purged . | . . . . . . Corruption Blocked . | . . . . . . Effects 13 | . 6 4 . 2 1 Message Errors 5 | . 2 1 . 1 1 Heat Flow Errors 2 | . 1 1 . . . Data Loss (minor) 2 | . 1 1 . . . Data Loss (major) 2 | . 1 . . 1 . Misfires 1 | . . 1 . . . Alerts 1 | . 1 . . . . Overload Shots . | . . . . . . Overflow Damage 514 | . 3 . 41 470 . Projectiles . | . . . . . . Explosions 48 | . 3 . 41 4 . Melee 466 | . . . . 466 . Knockbacks 1 | . . . . 1 . Impact 1 | . . . . 1 . Kinetic . | . . . . . . Secondary . | . . . . . . Self-Inflicted Damage 49 | . 25 . . 24 . Shots 2 | . 1 . . 1 . Rammed . | . . . . . . Targets Rammed . | . . . . . . Kicked . | . . . . . . Crushed . | . . . . . . Highest Temperature 215 | . 215 167 4 5 . Average Temperature 56 | . 56 72 2 3 . Received Heat Transfer 602 | . 267 . 66 221 48 Siege Activations . | . . . . . . Robots Corrupted . | . . . . . . Combat Hostiles . | . . . . . . Parts Fried 5 | . 1 . . 4 . Impact Corruptions 14 | . . . . 14 . Robots Melted . | . . . . . . Combat Hostiles . | . . . . . . Parts Melted . | . . . . . . Heat Transferred 692 | . 692 . . . . Parts Sabotaged . | . . . . . . Parts Stolen . | . . . . . . Parts Stripped . | . . . . . . Power Chain Reactions 1 | . 1 . . . . Alert | -11 -10 -10 -9 -9 -9 ------- Run | Yrd Mat Min Mat Sto Gar Peak Influence 360 | . 221 32 312 360 227 Initial 227 | . . 11 12 131 227 Average 101 | . 44 13 108 182 226 Maximum Alert Level 1 | . 1 . 1 1 1 Low Security (%) 78 | 100 98 100 73 60 . Level 1 21 | . 1 . 26 39 100 Level 2 . | . . . . . . Level 3 . | . . . . . . Level 4 . | . . . . . . Level 5 . | . . . . . . High Security . | . . . . . . Max Security . | . . . . . . Squads Dispatched 10 | . 2 1 2 5 . Investigation 8 | . . 1 2 5 . Extermination . | . . . . . . Reinforcement 2 | . 2 . . . . Assault . | . . . . . . Garrison . | . . . . . . Intercept . | . . . . . . Searches Triggered . | . . . . . . Construction Impeded . | . . . . . . Haulers Reinforced . | . . . . . . Active Scanning Responses . | . . . . . . Cargo Convoy Interrupts . | . . . . . . Stealth | -11 -10 -10 -9 -9 -9 --------- Run | Yrd Mat Min Mat Sto Gar Distress Signals 6 | . 2 . 1 3 . Communications Jammed . | . . . . . . Distress Signals . | . . . . . . Times Spotted 77 | . 14 . 14 44 5 Peak Tracking Total 14 | . 4 . 14 13 5 Tactical Retreats 10 | . 1 . 2 7 . Traps | -11 -10 -10 -9 -9 -9 ------- Run | Yrd Mat Min Mat Sto Gar Traps Triggered 4 | . 2 . . 2 . Indirectly . | . . . . . . Trap Hack Attempts 1 | . 1 . . . . Triggered . | . . . . . . Disarmed . | . . . . . . Reprogrammed 1 | . 1 . . . . Reused . | . . . . . . Traps Extracted . | . . . . . . Installed 1 | . . . . . 1 Triggered . | . . . . . . Most Traps Carried 2 | . . . . . 2 Machines | -11 -10 -10 -9 -9 -9 ---------- Run | Yrd Mat Min Mat Sto Gar Machines Disabled 2 | . 1 1 . . . Max in Single Turn 1 | . 1 1 . . . Machines Repaired . | . . . . . . Machines Dismantled . | . . . . . . Machines Sabotaged . | . . . . . . Overloaded Fab Kills . | . . . . . . Hacking | -11 -10 -10 -9 -9 -9 --------- Run | Yrd Mat Min Mat Sto Gar Machines Accessed 27 | . 5 1 7 14 . Terminals 23 | . 5 . 6 12 . Fabricators . | . . . . . . Repair Stations . | . . . . . . Recycling Units 2 | . . . 1 1 . Scanalyzers . | . . . . . . Garrison Access 1 | . . . . 1 . Total Hacks 86 | . 20 1 27 38 . Successful 42 | . 6 1 14 21 . Failed 44 | . 14 . 13 17 . Catastrophic 6 | . 2 . 2 2 . Database Lockouts . | . . . . . . Manual 54 | . 21 . 15 18 . Terminals 75 | . 20 . 23 32 . Fabricators . | . . . . . . Repair Stations . | . . . . . . Recycling Units 8 | . . . 4 4 . Scanalyzers . | . . . . . . Garrison Access 2 | . . . . 2 . Terminal Hacks 28 | . 5 1 8 14 . Record 2 | . . . 1 1 . Robot Analysis 4 | . 2 . 2 . . Prototype ID Bank 1 | . . . . 1 . Open Door 5 | . . 1 . 4 . Branch Access Points 1 | . . . 1 . . Terminal Index 2 | . 1 . 1 . . Alert Level 6 | . . . 2 4 . Unreport Threat 3 | . 1 . . 2 . Locate Traps 1 | . . . . 1 . Dispatch Records 1 | . . . 1 . . Intercept Status 1 | . 1 . . . . Registered Components 1 | . . . . 1 . Fabricator Hacks . | . . . . . . Repair Station Hacks . | . . . . . . Recycling Unit Hacks 3 | . . . 2 1 . Report Inventory 2 | . . . 1 1 . Retrieve Matter 1 | . . . 1 . . Scanalyzer . | . . . . . . Garrison Access Hacks 1 | . . . . 1 . Unlock Access 1 | . . . . 1 . Unauthorized Hacks 10 | . 1 . 4 5 . Terminals 8 | . 1 . 3 4 . Assimilate 3 | . . . . 3 . Botnet 5 | . 1 . 3 1 . Fabricators . | . . . . . . Repair Stations . | . . . . . . Recycling Units 2 | . . . 1 1 . Recyclers 2 | . . . 1 1 . Scanalyzers . | . . . . . . Garrison Access . | . . . . . . Data Cores Recovered . | . . . . . . Used . | . . . . . . Hacking Detections 24 | . 4 . 7 13 . Full Trace Events 11 | . . . 2 9 . Feedback Events 1 | . . . . 1 . Corruption 1 | . . . . 1 . Feedback Blocked . | . . . . . . Robot Schematics Acquired . | . . . . . . Robots Built . | . . . . . . Authchips . | . . . . . . Time . | . . . . . . Total Robot Build Rating . | . . . . . . Part Schematics Acquired . | . . . . . . Parts Built . | . . . . . . Authchips . | . . . . . . Time . | . . . . . . Total Part Build Rating . | . . . . . . Parts Repaired . | . . . . . . Time . | . . . . . . Parts Recycled . | . . . . . . Recycled Matter . | . . . . . . Retrieved Matter . | . . . . . . Retrieved Components . | . . . . . . Parts Scanalyzed . | . . . . . . Part Schematics Acquired . | . . . . . . Parts Damaged . | . . . . . . Bothacking | -11 -10 -10 -9 -9 -9 ------------ Run | Yrd Mat Min Mat Sto Gar Used RIF Installer . | . . . . . . Robots Hacked 1 | . . . . 1 . Non-combat 1 | . . . . 1 . Combat . | . . . . . . Robot Hacks Applied 2 | . . . . 2 . no_distress 1 | . . . . 1 . find_recycling 1 | . . . . 1 . Relay Couplers Released . | . . . . . . Fabnet Peak Effective % . | . . . . . . Robots Rewired . | . . . . . . Allies Hacked . | . . . . . . Hacks Repelled . | . . . . . . Allies | -11 -10 -10 -9 -9 -9 -------- Run | Yrd Mat Min Mat Sto Gar Total Allies 12 | . . . . 12 . Largest Group 10 | . . . . 10 . Highest-Rated Group 88 | . . . . 88 . Highest-Rated Ally 16 | . . . . 16 . Total Orders 13 | . . . . 9 4 EXPLORE 7 | . . . . 5 2 RETURN 6 | . . . . 4 2 Ally Attacks 59 | . . . . 59 . Total Damage 524 | . . . . 524 . Kills 8 | . . . . 8 . Allies Corrupted . | . . . . . . Allies Melted . | . . . . . . Intel | -11 -10 -10 -9 -9 -9 ------- Run | Yrd Mat Min Mat Sto Gar Robot Analysis Total 4 | . 2 . 2 . . Derelict Logs Recovered 1 | . . 1 . . . Drone Launches 10 | . . . . 6 4 Drone Recoveries 5 | . . . . 3 2 Exploration | -11 -10 -10 -9 -9 -9 ------------- Run | Yrd Mat Min Mat Sto Gar Turns Passed 1692 | 58 632 188 156 569 89 Spaces Moved 2008 | 48 483 462 369 604 42 Core 124 | 1 . . . 81 42 Treads . | . . . . . . Legs . | . . . . . . Wheels 459 | 47 412 . . . . Hover . | . . . . . . Flight 1425 | . 71 462 369 523 . Fastest Speed 32 | 50 37 37 34 32 100 Average Speed 54 | 98 91 37 34 41 142 Slowest Speed 440 | 100 440 37 34 100 150 Overloaded Moves . | . . . . . . Propulsion Burnouts . | . . . . . . Robots Hopped 24 | . 2 . 5 17 . Cave-ins Triggered . | . . . . . . Exploration Rate (%) 49 | 3 75 80 45 73 23 Regions Visited 5 Branch Regions 2 Pre-discovered Areas . | . . . . . . Known Exits Taken 4 | . 1 1 1 1 . Unknown Exits Taken 1 | 1 . . . . . Scrap Searched 2 | . . 2 . . . Spaces Dug 7 | . . . . 7 . Terrain Destroyed 51 | . 2 7 26 16 . Melee 7 | . . . . 7 . Projectile . | . . . . . . AOE 44 | . 2 7 26 9 . Terrain Rammed . | . . . . . . Walls Destroyed . | . . . . . . Machines Disabled . | . . . . . . Actions | -11 -10 -10 -9 -9 -9 --------- Run | Yrd Mat Min Mat Sto Gar Total 2429 | 55 581 477 392 852 72 Wait 234 | . 20 4 16 171 23 Move 1962 | 47 478 461 360 574 42 Hop 18 | . 2 . 3 13 . Pick Up 23 | 2 6 5 2 6 2 Fast Attach 18 | 6 1 2 1 8 . Attach 15 | . 6 . 4 3 2 Detach 3 | . . . 1 2 . Swap 5 | . 2 2 . 1 . Drop 16 | . 3 3 2 6 2 Fire 70 | . 62 . 3 5 . Melee 36 | . . . . 36 . Ram . | . . . . . . Kick . | . . . . . . Crush . | . . . . . . Escape Stasis 23 | . . . . 23 . Rewire 4 | . . . . 4 . Trap 2 | . 1 . . . 1 Miscellaneous . | . . . . . . Route ------- -11/Scrapyard -10/Materials (discovered 3 exits: *Mat x2 / *Min) -10/Mines -9/Materials (discovered 4 exits: *Mat x2 / *Min / *Sto) -9/Storage -9/Garrison History --------- Turn | Location | Event 18 | -11/Scrapyard | Discovered new exit (range 15) 59 | -11/Scrapyard | Entered Materials 107 | -10/Materials | Discovered new exit (range 15) 207 | -10/Materials | Discovered new exit (range 3) 314 | -10/Materials | Build established: Mutant 492 | -10/Materials | Discovered new exit (range 15) 612 | -10/Materials | Core integrity fell below 50% 685 | -10/Materials | Lost 3 parts (1n2w) 691 | -10/Materials | Identified exit to Mines 691 | -10/Materials | Entered Mines 734 | -10/Mines | Discovered new exit (range 12) 737 | -10/Mines | Identified exit to Materials 770 | -10/Mines | Learned location of 1 exit from Materials 778 | -10/Mines | Received a Rocket Launcher from a helpful Derelict 793 | -10/Mines | Found a hidden stash of uninstalled traps 802 | -10/Mines | Met a Derelict shopkeep closing up shop 879 | -10/Mines | Entered Materials 879 | -9/Materials | Evolved 2 slots: Propulsion x1, Utility x1 880 | -9/Materials | Identified exit to Materials 956 | -9/Materials | Discovered new exit (range 13) 973 | -9/Materials | Discovered exit to Materials (range 16) 979 | -9/Materials | Identified exit to Mines 979 | -9/Materials | Identified exit to Storage 1035 | -9/Materials | Entered Storage 1317 | -9/Storage | Destroyed 7 combat bots 1352 | -9/Storage | Lost 7 parts (2p3n1u1w) 1354 | -9/Storage | Core integrity fell below 50% 1429 | -9/Storage | Assisted by bots powering up and referring to "LRC-V3" 1512 | -9/Storage | Lost 9 allies 1601 | -9/Storage | Core integrity fell below 20% 1604 | -9/Storage | Identified exit to Garrison 1604 | -9/Storage | Entered Garrison 1630 | -9/Garrison | Triggered checkpoint 1635 | -9/Garrison | Lost 3 parts (2n1w) 1646 | -9/Garrison | Triggered checkpoint 1693 | -9/Garrison | Destroyed by G-34 Mercenary with Small Laser Last Messages --------------- 01608_ TCBHRBH4|AQLTMR=HF 01630_ Beams of light sweep through the air. An alarm sounds. 01640_ Drone retrieved by Drone Bay. 01641_ The unstable cave ceiling collapses. 01642_ Acquired Tesla Bomb Trap. 01646_ Beams of light sweep through the air. An alarm sounds. 01657_ Dropped Tesla Bomb Trap. 01658_ Installed Tesla Bomb Trap. 01667_ Drone retrieved by Drone Bay. 01682_ The unstable cave ceiling collapses. 01687_ Hvy. Flail destroyed. Map ----- +----------------------------------------------------+ | | | | | ????????????????????????????????????????? | | ????????????????????????????????????????? | | ????????????????????????????????????????? | | ????????????????????????????????????????? | | ????????????????????????????????????????? | | ????????????????????????????????????????? | | ????????????????????????????????????????? | | ????????????????????????????????????????? | | ????????????????????????????????????????? | | ??????????????????????###??###??????????? | | ??????????###?????????" "??" "??????????? | | ??????????# ?????????" "??" "??????????? | | ?????????? #????????" """" "??????????? | | ?????????? #?????#""" """#???????? | | ?????????? #?????# ^ #???????? | | ??????????# #?????#""" ""#???????? | | ??????????# ##???????" # & &&#???????? | | ??????????# ???????" = %&! &#???????? | | ??????????# ?????#""" ""#???????? | | ??????????# ?????# #???????? | | ??????????# #?????#### ####???????? | | ??????????# #????????## # #?????????? | | ??????????# ############^ #######????? | | ??????????# @ s g #????? | | ??????????# ss g #????? | | ??????????########### ! ######### #????? | | ????????????????????# #???????# #????? | | ????????????????????#####???????# #????? | | ????????????????????????????????# #????? | | ????????????????????????????????# #????? | | ????????????????????????????????# #????? | | ????????????????????????????????# #????? | | ????????????????????????????????# #????? | | ????????????????????????????????# #????? | | ????????????????????????????????# #????? | | ????????????????????????????????# #????? | | ????????????????????????????????# #????? | | ????????????????????????????????# #????? | | ????????????????????????????????# #????? | | ????????????????????????????????# #????? | | ????????????????????????????????# #????? | | ????????????????????????????????# #????? | | ????????????????????????????????# #????? | | ????????????????????????????????# ###### | | ????????????????????????????????# | | ????????????????????????????????# ^ | | ????????????????????????????????######### | | ????????????????????????????????????????? | +----------------------------------------------------+ Best States ------------- Heat Dissipation 28 Energy Generation 10 Energy Capacity 250 Matter Stores 300 Matter Capacity 300 Sight Range 16 Robot Scan Range 14 Terrain Scan Density 10 Evasion (%) 63 Defensive Hacking 10 Item Schematics ----------------- None Robot Schematics ------------------ None Fabricated ------------ Nothing Alien Tech Used ----------------- None Achievements -------------- Quantum Hacking Challenges ------------ None Game ------ Seed VisualConcussiveTrap Manual? 0 Play Time 00:45:52 Cumulative 159.1 hours Start 2024.04.06 @ 22:55:29 End 2024.04.06 @ 23:41:16 Sessions 1 Manual Loads 0 Difficulty Rogue Special Mode None Game No. 126 Rogue 121 Adventurer 0 Explorer 5 Win Type - Total 4 Types 1/0/1/2/0/0/0/0/0 Lore% 50 Gallery% 60 Achievement% 47 Wizard Run 0 Options --------- Layout 1 ASCII 0 Keyboard 0 Movement Mouse Keybinds 0 Fullscreen 2 Font 24/Tamsyn Map View 50x35 Zoom Use 0% Tactical HUD 1 Map Filters NONE Filters NONE Steam 1 RUN: 1b540ee8-c4df-49a6-bd05-1eacae6489b8